bitfinex-derivatives/quotes_SOLF0:USTF0_20250816
["timestamp","ask_amount","ask_price","bid_price","bid_amount"]
[1755352893204,3.02,187.58,187.51,2.98]
[1755352893804,3.02,187.58,187.52,2.98]
[1755352896010,3.02,187.58,187.49,2.98]
[1755352897002,3.02,187.58,187.45,3.64830807]
[1755352897205,3.02,187.56,187.46,2.98]
[1755352897609,3.02,187.56,187.48,2.98]
[1755352897803,3.02,187.56,187.45,3.64830807]
[1755352897999,3.02,187.56,187.49,5.3298]
[1755352898210,3.02,187.56,187.5,2.98]
[1755352899820,3.02,187.56,187.45,3.64830807]
[1755352900016,3.02,187.56,187.46,2.98]
[1755352900216,3.02,187.56,187.47,5.3304]
[1755352900417,3.02,187.56,187.48,2.98]
[1755352900811,3.02,187.56,187.52,2.98]
[1755352901006,3.02,187.56,187.48,3.64830807]
[1755352901216,3.02,187.56,187.49,2.98]
[1755352901518,3.02,187.55,187.54,2.98]
[1755352903415,3.02,187.63,187.51,3.64830807]
[1755352903720,3.02,187.66,187.55,2.98]
[1755352904019,3.02,187.64,187.55,2.98]
[1755352904421,3.02,187.64,187.54,3.64830807]
[1755352904422,3.02,187.64,187.6,2.98]
[1755352905031,3.02,187.64,187.61,2.98]
[1755352905328,3.02,187.68,187.61,2.98]
[1755352905516,4.03873431,187.67,187.61,2.98]
[1755352905723,4.03873431,187.66,187.61,2.98]
[1755352905923,3.02,187.65,187.55,2.98]
[1755352906623,3.02,187.65,187.61,8.3065]
[1755352906826,3.02,187.65,187.55,2.98]
[1755352907027,3.02,187.62,187.55,2.98]
[1755352908017,3.02,187.62,187.55,3.64830807]
[1755352908217,3.02,187.62,187.56,2.98]
[1755352908425,3.02,187.62,187.61,2.98]
[1755352910230,3.04,187.63,187.56,3.13]
[1755352911226,3.04,187.63,187.58,8.4574]
[1755352911819,3.04,187.61,187.53,3.13]
[1755352912127,3.04,187.59,187.51,3.13]
[1755352912328,3.04,187.57,187.46,3.64830807]
[1755352912530,3.04,187.57,187.45,358.26]
[1755352912531,3.04,187.57,187.55,3.13]
[1755352912933,3.04,187.57,187.56,3.13]
[1755352913137,3.04,187.59,187.57,3.13]
[1755352913326,3.04,187.59,187.58,3.13]
[1755352913527,139.67203861,187.64,187.56,3.13]
[1755352913732,4.03595086,187.63,187.56,3.13]
[1755352913931,3.04,187.61,187.5,3.13]
[1755352914233,3.04,187.61,187.45,358.26]
[1755352914234,7.07595086,187.6,187.58,3.13]
[1755352914434,7.07595086,187.6,187.52,3.64830807]
[1755352914435,3.04,187.6,187.53,3.13]
[1755352914628,3.04,187.6,187.59,8.4572]
[1755352914828,139.67203861,187.66,187.59,8.4572]
[1755352914829,3.04,187.62,187.59,8.4572]
[1755352915028,139.67203861,187.66,187.59,5.3272]
[1755352915234,3.04,187.64,187.59,5.3272]
[1755352915435,3.04,187.62,187.59,8.4572]
[1755352916136,3.04,187.65,187.59,8.4572]
[1755352916326,4.04128229,187.64,187.59,8.4572]
[1755352916529,3.04,187.62,187.59,8.4572]
[1755352916730,3.04,187.6,187.59,8.4572]
[1755352916927,136.02373054,187.66,187.58,5.3274]
[1755352917135,3.04,187.59,187.53,3.13]
[1755352917338,8.11203861,187.64,187.56,5.3278]
[1755352917537,3.04,187.62,187.56,3.13]
[1755352917737,3.04,187.6,187.56,3.13]
[1755352918141,3.04,187.6,187.59,8.4572]
[1755352918639,7.08604361,187.62,187.59,8.4572]
[1755352918843,7.08604361,187.61,187.6,3.13]
[1755352919139,3.04,187.6,187.58,8.4574]
[1755352919435,3.04,187.6,187.59,3.13]
[1755352919741,3.04,187.64,187.56,3.13]
[1755352919937,4.05312919,187.63,187.56,3.13]
[1755352920137,4.05312919,187.62,187.56,3.13]
[1755352920445,136.02373054,187.66,187.62,3.13]
[1755352920446,3.04,187.63,187.62,3.13]
[1755352920736,7.09694657,187.63,187.62,3.13]
[1755352921137,4.05694657,187.63,187.55,3.64830807]
[1755352921331,4.05694657,187.62,187.56,3.13]
[1755352921534,4.05694657,187.61,187.56,3.13]
[1755352921733,4.46373054,187.65,187.6,5.3266]
[1755352921929,3.04,187.62,187.55,3.64830807]
[1755352922133,4.05888994,187.61,187.56,3.13]
[1755352922340,4.46373054,187.66,187.59,3.13]
[1755352922541,4.06153476,187.65,187.59,3.13]
[1755352922741,4.06153476,187.64,187.59,3.13]
[1755352922940,4.06153476,187.63,187.62,5.3263]
[1755352923141,4.06153476,187.63,187.62,8.4563]
[1755352924445,7.50373054,187.68,187.67,3.13]
[1755352924631,11.55447881,187.68,187.62,3.13]
[1755352924832,135.18830807,187.72,187.62,3.13]
[1755352924833,3.04,187.66,187.62,3.13]
[1755352925038,4.0677086,187.65,187.62,3.13]
[1755352925233,7.1077086,187.64,187.59,3.13]
[1755352925540,3.04,187.62,187.6,3.13]
[1755352925836,7.1077086,187.61,187.55,3.64830807]
[1755352926036,4.46373054,187.65,187.55,3.64830807]
[1755352926241,3.04,187.61,187.59,3.13]
[1755352926442,4.0703717,187.6,187.59,8.4572]
[1755352928048,3.04,187.59,187.58,8.4574]
[1755352928343,7.1103717,187.59,187.58,8.4574]
[1755352928544,4.0703717,187.59,187.58,8.4574]
[1755352929644,4.46373054,187.64,187.63,8.456]
[1755352929847,7.50373054,187.65,187.64,3.13]
[1755352930044,11.84624479,187.65,187.64,3.13]
[1755352930242,8.80624479,187.65,187.64,5.3258]
[1755352930444,3.04,187.65,187.64,8.4558]
[1755352930846,7.48033922,187.66,187.65,5.3255]
[1755352931046,7.48033922,187.66,187.65,8.4555]
[1755352931541,3.04,187.66,187.65,5.3255]
[1755352931745,3.04,187.66,187.61,3.13]
[1755352932143,3.04,187.66,187.62,3.13]
[1755352932539,3.04,187.66,187.63,3.13]
[1755352932736,4.44033922,187.67,187.63,3.13]
[1755352932940,4.44033922,187.67,187.58,3.13]
[1755352933246,3.04,187.67,187.66,8.4552]
[1755352934040,5.92370875,187.71,187.67,5.3247]
[1755352934041,4.44033922,187.69,187.67,5.3247]
[1755352934242,7.48033922,187.71,187.67,3.13]
[1755352934545,7.48033922,187.71,187.66,3.64830807]
[1755352934546,3.04,187.69,187.61,3.64830807]
[1755352934849,3.04,187.68,187.63,3.13]
[1755352935749,3.04,187.67,187.62,5.3262]
[1755352935949,3.04,187.67,187.62,8.4562]
[1755352937647,4.44033922,187.68,187.64,3.13]
[1755352937953,3.04,187.65,187.64,3.13]
[1755352939249,7.38033922,187.69,187.62,8.1862]
[1755352939450,3.64830807,187.68,187.58,2.86]
[1755352939645,2.94,187.67,187.58,2.86]
[1755352939852,2.94,187.67,187.61,5.3263]
[1755352940746,2.94,187.67,187.6,8.1868]
[1755352941548,4.03812165,187.66,187.6,8.1868]
[1755352941749,2.94,187.64,187.61,8.1865]
[1755352941953,2.94,187.64,187.61,2.86]
[1755352942753,3.64830807,187.68,187.61,2.86]
[1755352942950,2.94,187.66,187.61,2.86]
[1755352943154,2.94,187.64,187.61,2.86]
[1755352944255,3.64830807,187.68,187.61,8.1866]
[1755352944452,2.94,187.63,187.61,5.3266]
[1755352944755,3.64830807,187.68,187.62,2.86]
[1755352944951,4.04195351,187.67,187.62,5.3263]
[1755352945151,4.04195351,187.66,187.63,2.86]
[1755352945356,2.94,187.66,187.65,2.86]
[1755352946152,6.98467942,187.66,187.65,2.86]
[1755352946658,2.94,187.65,187.56,3.64830807]
[1755352946853,2.94,187.65,187.61,5.3265]
[1755352947061,2.94,187.65,187.62,2.86]
[1755352947656,2.94,187.65,187.6,5.3268]
[1755352947851,2.94,187.65,187.61,2.86]
[1755352949060,2.94,187.65,187.61,8.1866]
[1755352949259,2.94,187.65,187.62,2.86]
[1755352950057,4.04889217,187.64,187.57,2.86]
[1755352950265,2.94,187.64,187.57,2.86]
[1755352950654,2.94,187.64,187.63,2.86]
[1755352950860,2.94,187.64,187.57,2.86]
[1755352951155,2.94,187.64,187.6,5.3266]
[1755352951367,2.94,187.64,187.61,2.86]
[1755352951665,2.94,187.68,187.62,2.86]
[1755352951858,2.94,187.66,187.62,2.86]
[1755352952061,2.94,187.68,187.62,2.86]
[1755352952266,2.94,187.66,187.6,2.86]
[1755352952560,2.94,187.64,187.6,2.86]
[1755352953361,2.94,187.64,187.57,2.86]
[1755352953769,8.1047218,187.69,187.61,5.3266]
[1755352953968,2.94,187.63,187.62,2.86]
[1755352954368,2.94,187.63,187.62,8.1863]
[1755352954568,2.94,187.68,187.62,2.86]
[1755352954767,2.94,187.66,187.62,2.86]
[1755352954968,4.04932662,187.65,187.63,5.3258]
[1755352955168,2.94,187.66,187.65,2.86]
[1755352955869,6.98965108,187.66,187.65,2.86]
[1755352956071,4.04965108,187.66,187.65,8.1855]
[1755352956375,2.94,187.71,187.65,2.86]
[1755352956574,2.94,187.69,187.65,2.86]
[1755352956775,2.94,187.71,187.65,6.50830807]
[1755352956974,2.94,187.71,187.66,2.86]
[1755352957177,2.94,187.7,187.69,8.1841]
[1755352957473,4.45641373,187.75,187.69,5.3241]
[1755352957672,4.45641373,187.75,187.65,3.64830807]
[1755352957673,2.94,187.73,187.66,2.86]
[1755352957873,6.99128466,187.72,187.71,2.86]
[1755352958377,4.05128466,187.72,187.71,2.86]
[1755352958575,5.92370875,187.78,187.71,2.86]
[1755352958576,4.45641373,187.78,187.71,2.86]
[1755352958870,6.99185224,187.77,187.71,2.86]
[1755352959175,4.05185224,187.76,187.75,8.1824]
[1755352959364,4.04992355,187.76,187.75,8.1824]
[1755352959569,4.45641373,187.81,187.75,5.3224]
[1755352959778,4.04966515,187.8,187.77,2.86]
[1755352959978,5.92370875,187.84,187.75,2.86]
[1755352959979,4.04966515,187.79,187.75,2.86]
[1755352960280,2.94,187.81,187.78,5.3217]
[1755352960482,6.98564409,187.8,187.79,2.86]
[1755352960775,4.45641373,187.86,187.79,2.86]
[1755352960974,4.04609075,187.85,187.81,2.86]
[1755352961183,2.94,187.88,187.81,2.86]
[1755352961371,4.04076618,187.87,187.81,2.86]
[1755352961677,4.04076618,187.86,187.85,2.86]
[1755352962080,2.94,187.88,187.85,2.86]
[1755352962268,2.94,187.91,187.86,2.86]
[1755352962471,2.94,187.89,187.82,2.86]
[1755352963179,2.94,187.93,187.82,2.86]
[1755352963380,4.03049829,187.92,187.82,2.86]
[1755352963581,2.94,187.91,187.82,2.86]
[1755352963880,2.94,187.91,187.88,5.3189]
[1755352964074,2.94,187.9,187.83,2.86]
[1755352965680,4.45641373,187.95,187.86,5.3194]
[1755352965976,4.01915675,187.94,187.78,6.16518833]
[1755352966178,2.94,187.9,187.89,2.86]
[1755352966777,6.16518833,187.96,187.78,6.16518833]
[1755352966978,2.94,187.89,187.88,2.86]
[1755352967173,2.94,187.95,187.85,5.3197]
[1755352967377,2.94,187.93,187.79,2.86]
[1755352967683,2.94,187.91,187.79,2.86]
[1755352968075,2.94,187.91,187.84,2.86]
[1755352968484,2.94,187.91,187.85,2.86]
[1755352969585,3.1,187.96,187.85,2.86]
[1755352969784,3.1,187.94,187.85,2.86]
[1755352969979,3.1,187.94,187.88,5.3187]
[1755352970179,3.1,187.94,187.9,2.9]
[1755352970379,3.1,187.98,187.83,2.9]
[1755352970580,3.1,187.96,187.89,8.2184]
[1755352970784,3.1,187.94,187.89,8.2184]
[1755352970980,3.1,187.94,187.9,2.9]
[1755352971881,3.1,187.94,187.87,2.9]
[1755352973987,3.1,187.94,187.82,6.16518833]
[1755352974290,3.1,187.94,187.78,6.16518833]
[1755352974490,3.1,187.91,187.8,5.3212]
[1755352974687,3.1,187.91,187.81,2.9]
[1755352974876,4.002651,187.9,187.81,2.9]
[1755352975081,3.1,187.89,187.81,2.9]
[1755352975386,3.1,187.89,187.81,5.321]
[1755352975584,3.1,187.89,187.76,2.9]
[1755352975882,3.1,187.89,187.77,2.9]
[1755352977088,3.1,187.89,187.82,5.3208]
[1755352977280,3.1,187.89,187.82,8.2208]
[1755352978182,3.1,187.89,187.82,2.9]
[1755352978386,3.1,187.89,187.8,2.9]
[1755352979187,3.1,187.89,187.81,8.2209]
[1755352979982,3.1,187.89,187.81,2.9]
[1755352980182,3.1,187.87,187.76,2.9]
[1755352980386,10.16288482,187.88,187.69,2.9]
[1755352980387,3.1,187.83,187.69,2.9]
[1755352980582,3.1,187.83,187.75,5.3227]
[1755352980788,3.1,187.83,187.76,2.9]
[1755352981290,3.1,187.83,187.77,2.9]
[1755352982180,3.1,187.83,187.74,2.9]
[1755352982785,3.1,187.8,187.74,2.9]
[1755352983887,3.1,187.8,187.71,2.9]
[1755352984087,20.44641373,187.86,187.68,2.9]
[1755352984088,3.1,187.77,187.68,2.9]
[1755352984388,3.63864455,187.75,187.68,2.9]
[1755352984590,3.1,187.74,187.68,2.9]
[1755352987193,3.1,187.74,187.61,2.9]
[1755352988091,3.1,187.74,187.73,5.3234]
[1755352988294,3.1,187.74,187.73,8.2234]
[1755352988892,3.1,187.74,187.73,2.9]
[1755352990898,3.1,187.81,187.73,2.9]
[1755352991195,3.1,187.79,187.73,2.9]
[1755352991398,3.1,187.77,187.73,8.2234]
[1755352991797,3.1,187.77,187.73,2.9]
[1755352992299,3.1,187.81,187.72,5.3234]
[1755352992494,3.1,187.79,187.65,2.9]
[1755352992701,3.1,187.77,187.65,2.9]
[1755352993200,3.1,187.77,187.69,2.9]
[1755352995305,3.1,187.77,187.72,8.2234]
[1755352995497,3.1,187.77,187.65,2.9]
[1755352995701,10.57748929,187.82,187.65,2.9]
[1755352995702,3.1,187.73,187.65,2.9]
[1755352995902,4.01031576,187.72,187.65,2.9]
[1755352996205,3.1,187.71,187.65,2.9]
[1755352997105,3.1,187.71,187.65,5.3254]
[1755352997308,3.1,187.71,187.67,2.9]
[1755352997606,3.1,187.71,187.68,2.9]
[1755352997902,6.17855611,187.74,187.68,2.9]
[1755352998106,3.1,187.69,187.68,2.9]
[1755352998898,3.11,187.71,187.6,6.17855611]
[1755352999203,3.11,187.71,187.61,2.84]
[1755352999705,3.11,187.71,187.65,2.84]
[1755353002214,3.11,187.71,187.58,2.84]
[1755353002416,3.11,187.71,187.58,44.0]
[1755353002616,3.11,187.71,187.59,2.84]
[1755353004017,3.11,187.71,187.64,5.3259]
[1755353004218,3.11,187.71,187.65,2.84]
[1755353006719,3.11,187.69,187.59,2.84]
[1755353007924,3.11,187.69,187.62,5.3265]
[1755353008120,3.6430304,187.67,187.58,2.84]
[1755353008324,3.11,187.66,187.58,2.84]
[1755353008720,3.11,187.66,187.61,5.3266]
[1755353008920,3.11,187.66,187.61,2.84]
[1755353009325,3.11,187.66,187.59,5.3272]
[1755353009925,3.11,187.66,187.59,8.1672]
[1755353010516,3.11,187.66,187.6,5.327]
[1755353010721,3.11,187.66,187.62,2.84]
[1755353015218,3.11,187.71,187.63,2.84]
[1755353016024,3.6430304,187.75,187.62,3.6430304]
[1755353016025,3.11,187.7,187.68,2.84]
[1755353016225,3.11,187.74,187.68,2.84]
[1755353016424,3.11,187.72,187.68,2.84]
[1755353016627,3.6430304,187.69,187.6,2.84]
[1755353016828,3.11,187.67,187.6,2.84]
[1755353017125,3.11,187.67,187.61,5.3266]
[1755353017427,3.11,187.67,187.63,2.84]
[1755353017623,3.11,187.66,187.64,2.84]
[1755353017929,3.6430304,187.69,187.64,2.84]
[1755353018131,3.11,187.65,187.64,2.84]
[1755353019627,3.11,187.65,187.56,3.6430304]
[1755353019628,3.11,187.65,187.57,2.84]
[1755353020030,3.11,187.65,187.59,2.84]
[1755353020224,3.11,187.63,187.59,2.84]
[1755353020623,3.11,187.61,187.58,2.84]
[1755353020830,3.11,187.6,187.58,2.84]
[1755353021525,3.11,187.64,187.54,5.3287]
[1755353021730,3.11,187.62,187.55,2.84]
[1755353021928,4.01690371,187.61,187.55,2.84]
[1755353022127,3.11,187.59,187.55,2.84]
[1755353022436,3.11,187.58,187.56,2.84]
[1755353022635,3.11,187.57,187.56,2.84]
[1755353023627,4.39893318,187.62,187.54,2.84]
[1755353023832,4.0192311,187.61,187.54,2.84]
[1755353024028,7.1292311,187.6,187.54,2.84]
[1755353024234,3.11,187.58,187.54,2.84]
[1755353024536,3.11,187.59,187.48,2.84]
[1755353024737,4.0217154,187.58,187.48,2.84]
[1755353025035,3.11,187.59,187.48,2.84]
[1755353025239,4.02246931,187.58,187.48,2.84]
[1755353025534,3.11,187.59,187.48,2.84]
[1755353025730,4.02187276,187.58,187.55,2.84]
[1755353025931,6.18752911,187.65,187.55,2.84]
[1755353025932,3.11,187.61,187.55,2.84]
[1755353026134,7.13254683,187.6,187.55,2.84]
[1755353026336,3.11,187.6,187.57,2.84]
[1755353026732,3.11,187.6,187.56,5.3279]
[1755353027138,3.11,187.6,187.57,5.3279]
[1755353027640,3.11,187.6,187.59,2.84]
[1755353027841,7.13567989,187.6,187.59,2.84]
[1755353029944,2.99,187.64,187.59,2.84]
[1755353030150,2.99,187.67,187.59,2.84]
[1755353030443,4.01714953,187.66,187.64,5.3259]
[1755353030640,4.0174458,187.65,187.61,2.89]
[1755353030840,2.99,187.62,187.61,2.89]
[1755353031041,4.39893318,187.69,187.61,8.2168]
[1755353031243,2.99,187.64,187.61,5.3268]
[1755353031444,2.99,187.64,187.62,2.89]
[1755353031640,4.39893318,187.69,187.56,2.89]
[1755353031950,7.00583305,187.68,187.56,2.89]
[1755353032246,4.01583305,187.67,187.6,2.89]
[1755353032438,7.00583305,187.67,187.65,8.2154]
[1755353032642,2.99,187.66,187.65,8.2154]
[1755353032843,7.00636439,187.66,187.6,8.2168]
[1755353033046,4.39893318,187.71,187.6,8.2168]
[1755353033047,2.99,187.64,187.6,2.89]
[1755353033443,2.99,187.64,187.6,8.2168]
[1755353033839,4.39893318,187.69,187.61,2.89]
[1755353034047,2.99,187.67,187.59,8.2172]
[1755353034244,4.01557615,187.66,187.59,8.2172]
[1755353034442,2.99,187.64,187.59,5.3272]
[1755353034647,2.99,187.64,187.6,2.89]
[1755353035648,2.99,187.63,187.61,2.89]
[1755353035848,2.99,187.68,187.59,8.2172]
[1755353036143,2.99,187.66,187.59,8.2172]
[1755353036454,6.18752911,187.88,187.59,8.2172]
[1755353036455,2.99,187.64,187.59,2.89]
[1755353036752,2.99,187.64,187.57,2.89]
[1755353037652,2.99,187.62,187.55,2.89]
[1755353038348,4.02003573,187.61,187.55,2.89]
[1755353038651,2.99,187.62,187.55,2.89]
[1755353038853,2.99,187.6,187.55,2.89]
[1755353039052,2.99,187.6,187.56,2.89]
[1755353040658,10.58646229,187.65,187.56,2.89]
[1755353040952,2.99,187.63,187.56,2.89]
[1755353041150,4.02170154,187.62,187.56,2.89]
[1755353041347,4.02170154,187.61,187.56,2.89]
[1755353041544,2.99,187.61,187.56,2.89]
[1755353041855,2.99,187.64,187.56,2.89]
[1755353042056,4.0216617,187.63,187.56,2.89]
[1755353042251,4.0216617,187.62,187.56,2.89]
[1755353042451,2.99,187.59,187.56,2.89]
[1755353042651,2.99,187.59,187.52,135.46532766]
[1755353042955,2.99,187.59,187.53,2.89]
[1755353043251,3.64532766,187.64,187.52,135.46532766]
[1755353043252,3.64532766,187.64,187.58,2.89]
[1755353043453,4.022584,187.63,187.58,2.89]
[1755353043656,2.99,187.69,187.61,3.64532766]
[1755353043853,4.02360157,187.68,187.62,2.89]
[1755353044058,2.99,187.69,187.62,2.89]
[1755353044754,2.99,187.67,187.62,2.89]
[1755353044953,2.99,187.65,187.62,2.89]
[1755353045655,2.99,187.65,187.55,138.06178909]
[1755353045656,2.99,187.68,187.59,2.89]
[1755353045851,4.02236608,187.67,187.59,2.89]
[1755353046056,2.99,187.65,187.59,2.89]
[1755353046257,4.02236608,187.64,187.58,5.3274]
[1755353046448,2.99,187.63,187.58,2.89]
[1755353046648,2.99,187.63,187.59,2.89]
[1755353046854,2.99,187.67,187.58,5.3276]
[1755353047059,2.99,187.65,187.59,2.89]
[1755353047953,4.39893318,187.7,187.62,2.89]
[1755353048251,2.99,187.67,187.6,2.89]
[1755353048453,2.99,187.65,187.6,2.89]
[1755353048657,2.99,187.63,187.6,2.89]
[1755353048856,2.99,187.67,187.6,2.89]
[1755353049057,2.99,187.65,187.6,2.89]
[1755353049248,2.99,187.62,187.6,2.89]
[1755353049449,2.99,187.62,187.61,2.89]
[1755353050358,2.99,187.67,187.61,2.89]
[1755353050554,4.02471663,187.66,187.55,138.06178909]
[1755353050763,2.99,187.64,187.6,2.89]
[1755353051258,4.39893318,187.68,187.6,2.89]
[1755353051453,2.99,187.66,187.6,5.327]
[1755353051663,15.12857548,187.73,187.61,2.89]
[1755353051664,7.01535085,187.65,187.61,2.89]
[1755353051858,2.99,187.65,187.61,2.89]
[1755353052663,2.99,187.64,187.62,2.89]
[1755353052858,2.99,187.64,187.63,2.89]
[1755353053559,2.99,187.68,187.55,138.06178909]
[1755353053757,4.02799554,187.67,187.56,2.89]
[1755353053957,2.99,187.68,187.6,2.89]
[1755353054153,4.02827677,187.67,187.6,2.89]
[1755353054359,4.39893318,187.71,187.64,5.3257]
[1755353054555,83.93663025,188.41,187.6,2.89]
[1755353054556,2.99,187.69,187.6,2.89]
[1755353054766,4.02789495,187.68,187.6,2.89]
[1755353054966,2.99,187.71,187.63,2.89]
[1755353055165,2.99,187.69,187.63,2.89]
[1755353055366,4.0282279,187.68,187.63,2.89]
[1755353055661,4.0282279,187.68,187.59,6.18178909]
[1755353055662,2.99,187.67,187.65,2.89]
[1755353055862,2.99,187.69,187.66,2.89]
[1755353056060,4.02755879,187.68,187.67,2.89]
[1755353056361,7.01755879,187.68,187.6,2.89]
[1755353056566,4.02547916,187.67,187.6,2.89]
[1755353056767,2.99,187.66,187.6,2.89]
[1755353057964,2.99,187.66,187.62,2.89]
[1755353058165,2.99,187.66,187.6,2.89]
[1755353059165,3.02,187.7,187.6,2.91]
[1755353059366,3.02,187.68,187.6,2.91]
[1755353059570,3.02,187.66,187.6,2.91]
[1755353059765,3.02,187.64,187.6,2.91]
[1755353061068,3.02,187.63,187.59,2.91]
[1755353061666,3.02,187.62,187.58,5.3275]
[1755353061959,3.02,187.62,187.6,2.91]
[1755353062662,4.39893318,187.68,187.6,2.91]
[1755353062863,3.02,187.66,187.58,2.91]
[1755353063067,3.02,187.64,187.53,2.91]
[1755353063265,3.02,187.62,187.55,5.3282]
[1755353063470,3.02,187.62,187.53,2.91]
[1755353063972,3.02,187.62,187.54,5.3285]
[1755353064173,3.02,187.62,187.55,2.91]
[1755353064975,3.02,187.62,187.56,2.91]
[1755353065476,3.02,187.62,187.51,182.00178909]
[1755353065672,3.02,187.6,187.52,2.91]
[1755353065872,3.02,187.58,187.52,2.91]
[1755353066774,3.02,187.58,187.52,8.2393]
[1755353066968,22.17178909,187.66,187.49,102.23165225]
[1755353066969,4.04164191,187.57,187.49,102.23165225]
[1755353067173,4.39893318,187.62,187.53,2.91]
[1755353067376,3.02,187.54,187.53,2.91]
[1755353068069,4.39893318,187.62,187.53,2.91]
[1755353068277,3.02,187.6,187.53,2.91]
[1755353068676,3.02,187.6,187.56,5.3281]
[1755353068872,3.02,187.6,187.58,2.91]
[1755353069274,3.02,187.59,187.58,2.91]
[1755353069476,10.58072227,187.66,187.56,5.3279]
[1755353069678,3.02,187.58,187.5,6.18178909]
[1755353069870,3.02,187.58,187.51,2.91]
[1755353070872,4.39893318,187.65,187.56,5.3282]
[1755353071077,3.02,187.63,187.55,2.91]
[1755353071274,3.02,187.61,187.55,2.91]
[1755353072271,3.02,187.61,187.58,5.3276]
[1755353072576,3.02,187.6,187.59,2.91]
[1755353073276,3.02,187.6,187.59,8.2373]
[1755353074278,3.02,187.65,187.59,8.2373]
[1755353074481,3.02,187.63,187.6,8.237]
[1755353074670,3.02,187.61,187.6,2.91]
[1755353075074,3.02,187.67,187.6,2.91]
[1755353075271,3.02,187.65,187.6,2.91]
[1755353075473,7.05955224,187.64,187.6,2.91]
[1755353075678,3.02,187.66,187.6,2.91]
[1755353076068,3.02,187.66,187.64,5.3257]
[1755353076278,3.02,187.65,187.64,8.2357]
[1755353077880,3.02,187.7,187.61,2.91]
[1755353078183,3.64183032,187.73,187.64,2.91]
[1755353078184,4.04051478,187.69,187.64,2.91]
[1755353078376,3.02,187.69,187.67,5.325]
[1755353078578,3.02,187.72,187.67,2.91]
[1755353078877,3.02,187.7,187.67,2.91]
[1755353079077,3.02,187.68,187.67,2.91]
[1755353081280,4.39893318,187.73,187.67,8.2351]
[1755353081584,3.02,187.69,187.68,2.91]
[1755353082376,131.72,187.76,187.68,8.2348]
[1755353082582,7.05742137,187.75,187.68,8.2348]
[1755353082782,3.02,187.73,187.68,5.3248]
[1755353082985,3.02,187.71,187.69,2.91]
[1755353083179,3.02,187.7,187.69,2.91]
[1755353085890,3.02,187.7,187.67,5.325]
[1755353086186,3.02,187.69,187.68,2.91]
[1755353086382,3.02,187.69,187.61,2.91]
[1755353087982,4.03362621,187.68,187.61,2.91]
[1755353088190,3.02,187.66,187.61,2.91]
[1755353088382,3.02,187.66,187.62,2.91]